fUST/lending_fUST_20250701
["ID","MTS","AMOUNT","RATE_DAILY","PERIOD"]
[368779496,1751363445845,-460.0,0.00018348,2]
[368779497,1751363445855,-460.0,0.00018349,2]
[368779498,1751363445865,-2968.01,0.00018349,2]
[368779499,1751363445876,-842.61,0.00018349,2]
[368779500,1751363445886,-460.0,0.00018349,2]
[368779501,1751363445898,-460.0,0.00018355,2]
[368779502,1751363445908,-460.0,0.00018355,2]
[368779503,1751363445919,-460.0,0.00018355,2]
[368779504,1751363445929,-460.0,0.00018355,2]
[368779505,1751363445938,-460.0,0.00018355,2]
[368779506,1751363445949,-460.0,0.00018355,2]
[368779507,1751363445959,-460.0,0.00018355,2]
[368779508,1751363445970,-598.6,0.00018355,2]
[368779509,1751363445980,-935.82,0.00018355,2]
[368779510,1751363445990,-460.0,0.00018355,2]
[368779511,1751363446001,-460.0,0.00018355,2]
[368779512,1751363446011,-460.0,0.00018355,2]
[368779513,1751363446020,-460.0,0.00018355,2]
[368779514,1751363446030,-1539.79,0.00018355,2]
[368779515,1751363446040,-460.0,0.00018355,2]
[368779516,1751363446049,-2209.86,0.00018355,2]
[368779517,1751363446058,-460.0,0.00018355,2]
[368779518,1751363446069,-460.0,0.00018355,2]
[368779519,1751363446079,-460.0,0.00018355,2]
[368779520,1751363446088,-1177.83,0.00018355,2]
[368779521,1751363446098,-460.0,0.00018357,2]
[368779522,1751363446107,-460.0,0.00018357,2]
[368779523,1751363446117,-514.45,0.00018357,2]
[368779524,1751363446126,-460.0,0.00018357,2]
[368779525,1751363446136,-460.0,0.00018357,2]
[368779526,1751363446146,-460.0,0.00018357,2]
[368779527,1751363446157,-460.0,0.00018357,2]
[368779528,1751363446166,-460.0,0.00018357,2]
[368779529,1751363446177,-460.0,0.00018357,2]
[368779530,1751363446187,-460.0,0.00018357,2]
[368779531,1751363446197,-460.0,0.00018357,2]
[368779532,1751363446206,-460.0,0.00018357,2]
[368779533,1751363446216,-460.06985562,0.00018357,2]
[368779534,1751363446225,-460.0,0.00018359,2]
[368779535,1751363446235,-460.0,0.00018359,2]
[368779536,1751363446246,-206.03139147,0.00018359,2]
[368779537,1751363446255,-460.0,0.00018359,2]
[368779538,1751363446265,-460.0,0.00018359,2]
[368779539,1751363446274,-460.0,0.00018359,2]
[368779540,1751363446285,-460.0,0.00018359,2]
[368779541,1751363446294,-151.0,0.00018422,2]
[368779543,1751363446304,-151.0,0.00018422,2]
[368779544,1751363446315,-151.0,0.00018422,2]
[368779545,1751363446324,-151.0,0.00018422,2]
[368779546,1751363446335,-151.0,0.00018422,2]
[368779547,1751363446344,-151.0,0.00018422,2]
[368779548,1751363446358,-151.0,0.00018422,2]
[368779549,1751363446368,-151.0,0.00018422,2]
[368779550,1751363446377,-151.0,0.00018422,2]
[368779551,1751363446390,-152.36259293,0.00018422,2]
[368779552,1751363446400,-151.31326342,0.00018422,2]
[368779554,1751363446409,-151.0,0.00018422,2]
[368779555,1751363446419,-151.0,0.00018422,2]
[368779556,1751363446429,-151.005927,0.00018422,2]
[368779557,1751363446439,-151.0,0.00018422,2]
[368779558,1751363446451,-238.06882732,0.00018422,2]
[368779559,1751363446462,-151.0,0.00018422,2]
[368779560,1751363446472,-151.0,0.00018422,2]
[368779569,1751363446594,-151.0,0.00018422,2]
[368779570,1751363446604,-156.15252379,0.00018422,2]
[368779571,1751363446614,-245.0,0.00018422,2]
[368779572,1751363446625,-151.0,0.00018422,2]
[368779573,1751363446635,-151.0,0.00018422,2]
[368779574,1751363446645,-151.0,0.00018422,2]
[368779575,1751363446655,-151.0,0.00018449,2]
[368779576,1751363446663,-151.0,0.00018449,2]
[368779577,1751363446674,-151.0,0.00018449,2]
[368779578,1751363446683,-151.0,0.00018449,2]
[368779579,1751363446691,-151.0,0.00018449,2]
[368779580,1751363446701,-151.0,0.00018449,2]
[368779581,1751363446708,-151.0,0.00018449,2]
[368779582,1751363446717,-151.0,0.00018449,2]
[368779583,1751363446726,-151.0,0.00018449,2]
[368779584,1751363446735,-151.0,0.00018449,2]
[368779585,1751363446746,-460.0,0.00018457,2]
[368779586,1751363446755,-151.0,0.00018457,2]
[368779587,1751363446765,-151.0,0.00018457,2]
[368779588,1751363446775,-151.0,0.00018457,2]
[368779589,1751363446784,-151.0,0.00018457,2]
[368779590,1751363446795,-151.0,0.00018457,2]
[368779591,1751363446809,-186.127068,0.00018457,2]
[368779592,1751363446818,-191.957885,0.00018457,2]
[368779593,1751363446828,-191.957885,0.00018457,2]
[368779594,1751363446839,-151.0,0.00018459,2]
[368779595,1751363446849,-151.0,0.00018459,2]
[368779596,1751363446858,-151.0,0.00018459,2]
[368779597,1751363446868,-151.0,0.00018459,2]
[368779598,1751363446877,-151.0,0.00018459,2]
[368779599,1751363446887,-151.0,0.00018459,2]
[368779600,1751363446900,-151.487986,0.00018459,2]
[368779601,1751363446910,-151.774939,0.00018459,2]
[368779602,1751363446923,-151.0,0.00018459,2]
[368779603,1751363446934,-151.0,0.00018459,2]
[368779604,1751363446943,-282.229524,0.00018459,2]
[368779605,1751363446954,-151.0,0.00018459,2]
[368779606,1751363446963,-151.0,0.00018459,2]
[368779607,1751363446973,-252.689177,0.00018459,2]
[368779608,1751363446983,-252.689177,0.00018459,2]
[368779609,1751363446993,-151.0,0.00018459,2]
[368779610,1751363447003,-183.580611,0.00018459,2]
[368779611,1751363447012,-183.580611,0.00018459,2]
[368779612,1751363447022,-151.0,0.00018459,2]
[368779613,1751363447033,-854.447483,0.00018459,2]
[368779614,1751363447042,-151.0,0.00018459,2]
[368779615,1751363447052,-151.0,0.00018459,2]
[368779616,1751363447061,-151.0,0.00018459,2]
[368779617,1751363447071,-151.0,0.00018459,2]
[368779618,1751363447080,-151.0,0.00018459,2]
[368779619,1751363447090,-151.0,0.00018459,2]
[368779620,1751363447099,-151.0,0.00018459,2]
[368779621,1751363447109,-151.0,0.00018459,2]
[368779622,1751363447118,-222.989582,0.00018459,2]
[368779623,1751363447128,-151.0,0.00018459,2]
[368779624,1751363447142,-222.989582,0.00018459,2]
[368779625,1751363447153,-151.0,0.00018459,2]
[368779626,1751363447162,-151.0,0.00018459,2]
[368779627,1751363447172,-151.0,0.00018459,2]
[368779628,1751363447182,-151.0,0.00018459,2]
[368779629,1751363447191,-151.0,0.00018459,2]
[368779630,1751363447201,-151.0,0.00018459,2]
[368779631,1751363447210,-151.0,0.00018459,2]
[368779632,1751363447219,-151.0,0.00018459,2]
[368779633,1751363447228,-151.0,0.00018459,2]
[368779634,1751363447238,-151.0,0.00018459,2]
[368779635,1751363447247,-151.0,0.00018459,2]
[368779636,1751363447257,-151.0,0.00018459,2]
[368779637,1751363447266,-151.0,0.00018459,2]
[368779638,1751363447275,-151.0,0.00018459,2]
[368779639,1751363447285,-151.0,0.00018459,2]
[368779640,1751363447295,-198.0,0.00018477,2]
[368779641,1751363447305,-255.0,0.00018477,2]
[368779642,1751363447314,-151.0,0.00018477,2]
[368779643,1751363447324,-206.63510145,0.00018477,2]
[368779644,1751363447334,-151.0,0.00018477,2]
[368779645,1751363447343,-256.2169029,0.00018477,2]
[368779646,1751363447352,-151.0,0.00018477,2]
[368779647,1751363447362,-2360.583657,0.0001848,2]
[368779648,1751363447371,-198.0,0.00018504,2]
[368779649,1751363447380,-151.0,0.00018504,2]
[368779650,1751363447389,-151.0,0.00018504,2]
[368779651,1751363447402,-151.0,0.00018523,2]
[368779652,1751363447412,-151.0,0.00018523,2]
[368779653,1751363447422,-151.0,0.00018523,2]
[368779654,1751363447431,-579.22,0.0001853,2]
[368779655,1751363447440,-460.0,0.0001853,2]
[368779656,1751363447450,-460.0,0.0001853,2]
[368779657,1751363447459,-1323.74,0.0001853,2]
[368779658,1751363447468,-488.94,0.0001853,2]
[368779659,1751363447477,-460.0,0.0001853,2]
[368779660,1751363447486,-258.33328661,0.00018531,2]
[368779661,1751363447497,-460.0,0.00018531,2]
[368779662,1751363447507,-460.0,0.00018531,2]
[368779663,1751363447516,-609.55669004,0.00018531,2]
[368779664,1751363447527,-412.77,0.00018531,2]
[368779665,1751363447537,-460.0,0.00018531,2]
[368779666,1751363447547,-460.0,0.00018531,2]
[368779667,1751363447556,-1590.5,0.00018531,2]
[368779668,1751363447566,-460.0,0.00018531,2]
[368779669,1751363447575,-460.0,0.00018531,2]
[368779670,1751363447585,-460.0,0.00018531,2]
[368779671,1751363447595,-543.95,0.00018531,2]
[368779672,1751363447605,-460.0,0.00018531,2]
[368779673,1751363447614,-514.17330706,0.00018531,2]
[368779674,1751363447623,-1192.21,0.00018531,2]
[368779675,1751363447633,-460.0,0.00018531,2]
[368779676,1751363447642,-460.0,0.00018531,2]
[368779677,1751363447652,-460.0,0.00018531,2]
[368779678,1751363447662,-460.0,0.00018531,2]
[368779679,1751363447672,-460.0,0.00018531,2]
[368779680,1751363447681,-460.0,0.00018531,2]
[368779681,1751363447691,-1552.26,0.00018531,2]
[368779682,1751363447701,-460.0,0.00018531,2]
[368779683,1751363447710,-460.0,0.00018531,2]
[368779684,1751363447719,-1767.48,0.00018531,2]
[368779685,1751363447728,-460.0,0.00018531,2]
[368779686,1751363447738,-460.0,0.00018531,2]
[368779687,1751363447747,-460.0,0.00018531,2]
[368779688,1751363447758,-1866.06,0.00018531,2]
[368779689,1751363447768,-460.0,0.00018531,2]
[368779690,1751363447777,-460.0,0.00018531,2]
[368779691,1751363447786,-460.0,0.00018531,2]
[368779692,1751363447796,-460.0,0.00018531,2]
[368779693,1751363447805,-180.72,0.00018531,2]
[368779694,1751363447814,-1119.17,0.00018531,2]
[368779695,1751363447823,-460.0,0.00018531,2]
[368779696,1751363447833,-585.13,0.00018531,2]
[368779697,1751363447842,-460.0,0.00018531,2]
[368779698,1751363447852,-460.0,0.00018531,2]
[368779699,1751363447862,-460.0,0.00018531,2]
[368779700,1751363447872,-526.82,0.00018531,2]
[368779701,1751363447881,-460.0,0.00018531,2]
[368779702,1751363447891,-460.0,0.00018531,2]
[368779703,1751363447901,-460.0,0.00018531,2]
[368779704,1751363447915,-582.95,0.00018531,2]
[368779705,1751363447924,-460.0,0.00018531,2]
[368779706,1751363447934,-460.0,0.00018531,2]
[368779707,1751363447944,-460.0,0.00018531,2]
[368779708,1751363447954,-460.0,0.00018531,2]
[368779709,1751363447963,-460.0,0.00018531,2]
[368779710,1751363447973,-198.0,0.00018532,2]
[368779711,1751363447983,-255.29819206,0.00018532,2]
[368779712,1751363447992,-460.0,0.00018532,2]
[368779713,1751363448003,-460.0,0.00018532,2]
[368779714,1751363448012,-460.0,0.00018532,2]
[368779715,1751363448022,-460.0,0.00018532,2]
[368779716,1751363448031,-460.0,0.00018532,2]
[368779717,1751363448041,-460.0,0.00018532,2]
[368779718,1751363448050,-528.79,0.00018532,2]
[368779719,1751363448061,-460.0,0.00018532,2]
[368779720,1751363448070,-460.0,0.00018532,2]
[368779721,1751363448080,-460.0,0.00018532,2]
[368779722,1751363448091,-460.0,0.00018532,2]
[368779723,1751363448101,-460.0,0.00018532,2]
[368779724,1751363448111,-460.0,0.00018532,2]
[368779725,1751363448121,-2546.94,0.00018532,2]
[368779726,1751363448132,-460.0,0.00018532,2]
[368779727,1751363448142,-727.96,0.00018532,2]
[368779728,1751363448152,-151.910714,0.00018622,2]
[368779729,1751363448162,-151.0,0.00018622,2]
[368779730,1751363448172,-460.0,0.00018622,2]
[368779731,1751363448182,-460.0,0.00018622,2]
[368779732,1751363448191,-460.0,0.00018622,2]
[368779733,1751363448200,-460.0,0.00018622,2]
[368779734,1751363448210,-460.0,0.00018622,2]
[368779735,1751363448219,-460.0,0.00018622,2]
[368779736,1751363448228,-460.0,0.00018622,2]
[368779737,1751363448237,-460.0,0.00018622,2]
[368779738,1751363448247,-460.0,0.00018622,2]
[368779739,1751363448256,-460.0,0.00018622,2]
[368779740,1751363448266,-460.0,0.00018622,2]
[368779741,1751363448275,-460.0,0.00018622,2]
[368779742,1751363448284,-460.0,0.00018622,2]
[368779743,1751363448293,-460.0,0.00018622,2]
[368779744,1751363448303,-460.0,0.00018622,2]
[368779745,1751363448312,-512.45060134,0.00018622,2]
[368779746,1751363448321,-460.0,0.00018622,2]
[368779747,1751363448331,-460.0,0.00018622,2]
[368779748,1751363448340,-460.0,0.00018622,2]
[368779749,1751363448350,-460.0,0.00018622,2]
[368779750,1751363448360,-460.0,0.00018622,2]
[368779751,1751363448369,-460.0,0.00018622,2]
[368779752,1751363448378,-460.0,0.00018622,2]
[368779753,1751363448388,-460.0,0.00018622,2]
[368779754,1751363448398,-244.22232057,0.00018623,2]
[368779755,1751363448407,-2968.01,0.00018623,2]
[368779756,1751363448417,-842.61,0.00018623,2]
[368779757,1751363448427,-460.0,0.00018623,2]
[368779758,1751363448436,-460.0,0.00018629,2]
[368779759,1751363448446,-460.0,0.00018629,2]
[368779760,1751363448455,-460.0,0.00018629,2]
[368779761,1751363448465,-460.0,0.00018629,2]
[368779762,1751363448475,-460.0,0.00018629,2]
[368779763,1751363448485,-460.0,0.00018629,2]
[368779764,1751363448495,-460.0,0.00018629,2]
[368779765,1751363448504,-598.6,0.00018629,2]
[368779766,1751363448514,-935.82,0.00018629,2]
[368779767,1751363448524,-460.0,0.00018629,2]
[368779768,1751363448535,-460.0,0.00018629,2]
[368779769,1751363448544,-460.0,0.00018629,2]
[368779770,1751363448554,-460.0,0.00018629,2]
[368779771,1751363448563,-1539.79,0.00018629,2]
[368779772,1751363448572,-460.0,0.00018629,2]
[368779773,1751363448582,-2209.86,0.00018629,2]
[368779774,1751363448592,-460.0,0.00018629,2]
[368779775,1751363448601,-460.0,0.00018629,2]
[368779776,1751363448611,-460.0,0.00018629,2]
[368779777,1751363448620,-1177.83,0.00018629,2]
[368779778,1751363448630,-460.0,0.00018631,2]
[368779779,1751363448732,-460.0,0.00018631,2]
[368779780,1751363448743,-514.45,0.00018631,2]
[368779781,1751363448754,-460.0,0.00018631,2]
[368779782,1751363448763,-460.0,0.00018631,2]
[368779783,1751363448772,-460.0,0.00018631,2]
[368779784,1751363448782,-460.0,0.00018631,2]
[368779785,1751363448792,-460.0,0.00018631,2]
[368779786,1751363448801,-460.0,0.00018631,2]
[368779787,1751363448811,-460.0,0.00018631,2]
[368779788,1751363448821,-460.0,0.00018631,2]
[368779789,1751363448831,-246.94312698,0.00018632,2]
[368779790,1751363448841,-500.78030379,0.00018632,2]
[368779791,1751363448850,-500.0,0.00018632,2]
[368779792,1751363448859,-501.61816801,0.00018632,2]
[368779793,1751363448869,-460.0,0.00018633,2]
[368779794,1751363448879,-460.0,0.00018633,2]
[368779795,1751363448889,-460.0,0.00018633,2]
[368779796,1751363448900,-460.0,0.00018633,2]
[368779797,1751363448914,-151.0,0.000187,2]
[368779798,1751363448924,-460.0,0.00018731,2]
[368779799,1751363448933,-524.61914904,0.00018804,2]
[368779800,1751363448943,-160.0,0.00018804,2]
[368779801,1751363448954,-160.0,0.00018804,2]
[368779802,1751363448963,-160.0,0.00018804,2]
[368779803,1751363448972,-160.0,0.00018804,2]
[368779804,1751363448983,-160.0,0.00018804,2]
[368779805,1751363448994,-460.0,0.00018804,2]
[368779806,1751363449003,-460.0,0.00018804,2]
[368779807,1751363449012,-1323.74,0.00018804,2]
[368779808,1751363449022,-460.0,0.00018804,2]
[368779809,1751363449032,-557.67392154,0.00018805,2]
[368779810,1751363449041,-519.51397845,0.00018805,2]
[368779811,1751363449051,-460.0,0.00018805,2]
[368779812,1751363449060,-460.0,0.00018805,2]
[368779813,1751363449069,-1590.5,0.00018805,2]
[368779814,1751363449079,-460.0,0.00018805,2]
[368779815,1751363449089,-460.0,0.00018805,2]
[368779816,1751363449099,-496.87,0.00018805,2]
[368779817,1751363449109,-1192.21,0.00018805,2]
[368779818,1751363449118,-151.0,0.00018805,2]
[368779819,1751363449128,-460.0,0.00018805,2]
[368779820,1751363449137,-460.0,0.00018805,2]
[368779821,1751363449148,-460.0,0.00018805,2]
[368779822,1751363449157,-460.0,0.00018805,2]
[368779823,1751363449167,-151.0,0.00018805,2]
[368779824,1751363449177,-460.0,0.00018805,2]
[368779825,1751363449186,-151.0,0.00018805,2]
[368779826,1751363449196,-460.0,0.00018805,2]
[368779827,1751363449205,-151.0,0.00018805,2]
[368779828,1751363449215,-1552.26,0.00018805,2]
[368779829,1751363449224,-460.0,0.00018805,2]
[368779830,1751363449234,-460.0,0.00018805,2]
[368779831,1751363449244,-1767.48,0.00018805,2]
[368779832,1751363449253,-460.0,0.00018805,2]
[368779833,1751363449263,-460.0,0.00018805,2]
[368779834,1751363449274,-460.0,0.00018805,2]
[368779835,1751363449283,-1866.06,0.00018805,2]
[368779836,1751363449293,-460.0,0.00018805,2]
[368779837,1751363449303,-151.0,0.00018805,2]
[368779838,1751363449313,-460.0,0.00018805,2]
[368779839,1751363449322,-405.20263966,0.00018805,2]
[368779840,1751363449332,-460.0,0.00018805,2]
[368779841,1751363449342,-1119.17,0.00018805,2]
[368779842,1751363449351,-460.0,0.00018805,2]
[368779843,1751363449360,-585.13,0.00018805,2]
[368779844,1751363449370,-151.0,0.00018805,2]
[368779845,1751363449380,-460.0,0.00018805,2]
[368779846,1751363449390,-460.0,0.00018805,2]
[368779847,1751363449400,-239.270683,0.00018805,2]
[368779848,1751363449411,-460.0,0.00018805,2]
[368779849,1751363449421,-151.0,0.00018805,2]
[368779850,1751363449431,-460.0,0.00018805,2]
[368779851,1751363449441,-460.0,0.00018805,2]
[368779852,1751363449450,-460.0,0.00018805,2]
[368779853,1751363449460,-582.95,0.00018805,2]
[368779854,1751363449469,-460.0,0.00018805,2]
[368779855,1751363449478,-460.0,0.00018805,2]
[368779856,1751363449488,-460.0,0.00018805,2]
[368779857,1751363449497,-460.0,0.00018805,2]
[368779858,1751363449507,-460.0,0.00018805,2]
[368779859,1751363449518,-562.08,0.00018806,2]
[368779860,1751363449528,-460.0,0.00018806,2]
[368779861,1751363449537,-460.0,0.00018806,2]
[368779862,1751363449547,-540.94907351,0.00018806,2]
[368779863,1751363449556,-151.0,0.00018806,2]
[368779864,1751363449565,-151.0,0.00018806,2]
[368779865,1751363449575,-460.0,0.00018806,2]
[368779866,1751363449584,-460.0,0.00018806,2]
[368779867,1751363449593,-151.0,0.00018806,2]
[368779868,1751363449603,-460.0,0.00018806,2]
[368779869,1751363449612,-151.0,0.00018806,2]
[368779870,1751363449622,-151.0,0.00018806,2]
[368779871,1751363449631,-151.0,0.00018806,2]
[368779872,1751363449641,-151.0,0.00018806,2]
[368779873,1751363449651,-460.0,0.00018806,2]
[368779874,1751363449660,-460.0,0.00018806,2]
[368779875,1751363449671,-460.0,0.00018806,2]
[368779876,1751363449680,-460.0,0.00018806,2]
[368779877,1751363449690,-460.0,0.00018806,2]
[368779878,1751363449699,-2546.94,0.00018806,2]
[368779879,1751363449709,-460.0,0.00018806,2]
[368779880,1751363449719,-727.96,0.00018806,2]
[368779881,1751363449728,-165.29168728,0.00018831,2]
[368779882,1751363449737,-160.0,0.00018835,2]
[368779883,1751363449747,-837.20943635,0.00018835,2]
[368779884,1751363449756,-215.01728679,0.00018835,2]
[368779885,1751363449766,-160.0,0.00018835,2]
[368779886,1751363449775,-847.53272281,0.00018835,2]
[368779887,1751363449784,-160.0,0.00018835,2]
[368779888,1751363449794,-213.87551669,0.00018835,2]
[368779889,1751363449803,-12571.40790328,0.00018835,2]
[368779890,1751363449812,-230.32585361,0.00018835,2]
[368779891,1751363449821,-151.0,0.00018835,2]
[368779892,1751363449831,-151.0,0.00018835,2]
[368779893,1751363449840,-151.0,0.00018835,2]
[368779894,1751363449850,-151.0,0.00018835,2]
[368779895,1751363449859,-222.989582,0.00018835,2]
[368779896,1751363449869,-151.0,0.00018835,2]
[368779897,1751363449879,-222.989582,0.00018835,2]
[368779898,1751363449889,-191.957885,0.00018835,2]
[368779899,1751363449899,-191.957885,0.00018835,2]
[368779900,1751363449910,-151.0,0.00018835,2]
[368779901,1751363449922,-160.0,0.00018837,2]
[368779902,1751363449931,-944.53296649,0.00018856,2]
[368779903,1751363449941,-2360.583657,0.00018867,2]
[368779904,1751363449951,-460.0,0.00018896,2]
[368779905,1751363449960,-460.0,0.00018896,2]
[368779906,1751363449969,-151.0,0.00018896,2]
[368779907,1751363449978,-151.0,0.00018896,2]
[368779908,1751363449987,-151.0,0.00018896,2]
[368779909,1751363449998,-151.0,0.00018896,2]
[368779910,1751363450007,-460.0,0.00018896,2]
[368779911,1751363450017,-460.0,0.00018896,2]
[368779912,1751363450026,-460.0,0.00018896,2]
[368779913,1751363450036,-252.689177,0.00018896,2]
[368779914,1751363450045,-252.689177,0.00018896,2]
[368779915,1751363450055,-151.0,0.00018896,2]
[368779916,1751363450064,-183.580611,0.00018896,2]
[368779917,1751363450073,-183.580611,0.00018896,2]
[368779918,1751363450083,-460.0,0.00018896,2]
[368779919,1751363450092,-460.0,0.00018896,2]
[368779920,1751363450101,-151.0,0.00018896,2]
[368779921,1751363450110,-854.447483,0.00018896,2]
[368779922,1751363450119,-151.0,0.00018896,2]
[368779923,1751363450129,-460.0,0.00018896,2]
[368779924,1751363450138,-460.0,0.00018896,2]
[368779925,1751363450148,-460.0,0.00018896,2]
[368779926,1751363450157,-460.0,0.00018896,2]
[368779927,1751363450166,-460.0,0.00018896,2]
[368779928,1751363450175,-460.0,0.00018896,2]
[368779929,1751363450185,-460.0,0.00018896,2]
[368779930,1751363450194,-460.0,0.00018896,2]
[368779931,1751363450203,-460.0,0.00018896,2]
[368779932,1751363450213,-460.0,0.00018896,2]
[368779933,1751363450222,-460.0,0.00018896,2]
[368779934,1751363450232,-466.03665853,0.00018896,2]
[368779935,1751363450241,-460.0,0.00018896,2]
[368779936,1751363450251,-460.0,0.00018896,2]
[368779937,1751363450261,-460.0,0.00018896,2]
[368779938,1751363450271,-2968.01,0.00018897,2]
[368779939,1751363450280,-842.61,0.00018897,2]
[368779940,1751363450289,-460.0,0.00018897,2]
[368779941,1751363450298,-151.0,0.000189,2]
[368779942,1751363450308,-608.33617138,0.000189,2]
[368779943,1751363450317,-460.0,0.00018903,2]
[368779944,1751363450326,-151.0,0.00018903,2]
[368779945,1751363450336,-151.0,0.00018903,2]
[368779946,1751363450347,-151.0,0.00018903,2]
[368779947,1751363450356,-151.0,0.00018903,2]
[368779948,1751363450366,-151.0,0.00018903,2]
[368779949,1751363450375,-460.0,0.00018903,2]
[368779950,1751363450384,-460.0,0.00018903,2]
[368779951,1751363450393,-460.0,0.00018903,2]
[368779952,1751363450402,-460.0,0.00018903,2]
[368779953,1751363450411,-460.0,0.00018903,2]
[368779954,1751363450422,-598.6,0.00018903,2]
[368779955,1751363450431,-935.82,0.00018903,2]
[368779956,1751363450441,-460.0,0.00018903,2]
[368779957,1751363450451,-460.0,0.00018903,2]
[368779958,1751363450461,-460.0,0.00018903,2]
[368779959,1751363450470,-1539.79,0.00018903,2]
[368779960,1751363450479,-460.0,0.00018903,2]
[368779961,1751363450489,-2209.86,0.00018903,2]
[368779962,1751363450498,-460.0,0.00018903,2]
[368779963,1751363450508,-1177.83,0.00018903,2]
[368779964,1751363450517,-151.0,0.00018905,2]
[368779965,1751363450526,-198.300075,0.00018905,2]
[368779966,1751363450536,-151.0,0.00018905,2]
[368779967,1751363450546,-151.0,0.00018905,2]
[368779968,1751363450556,-460.0,0.00018905,2]
[368779969,1751363450565,-609.57973016,0.00018905,2]
[368779970,1751363450575,-514.45,0.00018905,2]
[368779971,1751363450584,-460.0,0.00018905,2]
[368779972,1751363450672,-460.0,0.00018905,2]
[368779973,1751363450683,-460.0,0.00018905,2]
[368779974,1751363450694,-460.0,0.00018905,2]
[368779975,1751363450703,-460.0,0.00018905,2]
[368779976,1751363450713,-460.0,0.00018905,2]
[368779977,1751363450723,-151.0,0.00018907,2]
[368779978,1751363450732,-151.0,0.00018907,2]
[368779979,1751363450743,-151.0,0.00018907,2]
[368779980,1751363450752,-460.0,0.00018907,2]
[368779981,1751363450762,-460.0,0.00018907,2]
[368779982,1751363450771,-168.0,0.00018967,2]
[368779983,1751363450781,-249.0,0.00018978,2]
[368779984,1751363450790,-151.0,0.00019,2]
[368779985,1751363450801,-9088.43575008,0.00019,2]
[368779986,1751363450811,-151.0,0.00019,2]
[368779987,1751363450820,-151.0,0.00019,2]
[368779988,1751363450830,-1000.0,0.00019,19]
[368779989,1751363450839,-460.0,0.00019005,2]
[368779990,1751363450848,-168.0,0.00019011,2]
[368779991,1751363450858,-513.58533318,0.00019038,2]
[368779992,1751363450867,-942.72,0.00019071,3]
[368779993,1751363450877,-471.36,0.00019071,3]
[368779994,1751363450886,-460.0,0.00019078,2]
[368779995,1751363450895,-460.0,0.00019078,2]
[368779996,1751363450905,-1323.74,0.00019078,2]
[368779997,1751363450917,-460.0,0.00019078,2]
[368779998,1751363450926,-460.0,0.00019079,2]
[368779999,1751363450935,-460.0,0.00019079,2]
[368780000,1751363450944,-1590.5,0.00019079,2]
[368780001,1751363450955,-460.0,0.00019079,2]
[368780002,1751363450965,-460.0,0.00019079,2]
[368780003,1751363450975,-1192.21,0.00019079,2]
[368780004,1751363450986,-460.0,0.00019079,2]
[368780005,1751363450996,-460.0,0.00019079,2]